lending/lending_fUSD_20240410
["ID","MTS","AMOUNT","RATE_DAILY","PERIOD"]
[322095570,1712760652597,-216.04,0.00056236,2]
[322095571,1712760652608,-500.0,0.0005624,120]
[322095572,1712760652619,-2058.33,0.00056273,120]
[322095573,1712760652630,-1193.71,0.00056273,120]
[322095574,1712760652640,-500.0,0.00056273,120]
[322095575,1712760652650,-833.33,0.00056273,120]
[322095576,1712760652660,-514.23,0.00056273,120]
[322095577,1712760652670,-758.87,0.00056273,120]
[322095578,1712760652680,-686.56,0.00056273,120]
[322095579,1712760652690,-872.88,0.00056273,120]
[322095580,1712760652699,-919.74,0.00056273,120]
[322095581,1712760652709,-1500.0,0.00056334,14]
[322095582,1712760652719,-2058.33,0.00056356,120]
[322095583,1712760652729,-1193.71,0.00056356,120]
[322095584,1712760652739,-500.0,0.00056356,120]
[322095585,1712760652749,-833.33,0.00056356,120]
[322095586,1712760652759,-514.23,0.00056356,120]
[322095587,1712760652770,-758.87,0.00056356,120]
[322095588,1712760652781,-686.56,0.00056356,120]
[322095589,1712760652791,-872.88,0.00056356,120]
[322095590,1712760652802,-919.74,0.00056356,120]
[322095591,1712760652813,-150.0,0.00056375,120]
[322095592,1712760652824,-167.0,0.000564,30]
[322095593,1712760652835,-150.0,0.00056404,120]
[322095594,1712760652850,-2058.33,0.00056438,120]
[322095595,1712760652861,-1193.71,0.00056438,120]
[322095596,1712760652871,-533.28881881,0.00056438,120]
[322095597,1712760652883,-833.33,0.00056438,120]
[322095598,1712760652893,-514.23,0.00056438,120]
[322095599,1712760652904,-758.87,0.00056438,120]
[322095600,1712760652914,-686.56,0.00056438,120]
[322095601,1712760652924,-872.88,0.00056438,120]
[322095602,1712760652935,-919.74,0.00056438,120]
[322095603,1712760652945,-150.0,0.000565,107]
[322095604,1712760652956,-2058.33,0.0005652,120]
[322095605,1712760652966,-1193.71,0.0005652,120]
[322095606,1712760652976,-833.33,0.0005652,120]
[322095607,1712760652986,-514.23,0.0005652,120]
[322095608,1712760652995,-758.87,0.0005652,120]
[322095609,1712760653006,-686.56,0.0005652,120]
[322095610,1712760653017,-872.88,0.0005652,120]
[322095611,1712760653027,-919.74,0.0005652,120]
[322095612,1712760653037,-150.0,0.00056573,120]
[322095613,1712760653047,-65251.1978299,0.00056598,120]
[322095614,1712760653057,-80701.19192425,0.00056598,120]
[322095615,1712760653067,-2058.33,0.00056602,120]
[322095616,1712760653078,-1193.71,0.00056602,120]
[322095617,1712760653089,-833.33,0.00056602,120]
[322095618,1712760653101,-514.23,0.00056602,120]
[322095619,1712760653111,-758.87,0.00056602,120]
[322095620,1712760653122,-686.56,0.00056602,120]
[322095621,1712760653132,-872.88,0.00056602,120]
[322095622,1712760653143,-919.74,0.00056602,120]
[322095623,1712760653154,-150.0,0.00056672,120]
[322095624,1712760653163,-150.0,0.00056672,120]
[322095625,1712760653173,-2058.41,0.00056684,120]
[322095626,1712760653184,-1193.7570382,0.00056684,120]
[322095627,1712760653194,-833.41,0.00056684,120]
[322095628,1712760653204,-514.38,0.00056684,120]
[322095629,1712760653213,-758.885,0.00056684,120]
[322095630,1712760653224,-686.78636582,0.00056684,120]
[322095631,1712760653234,-873.0283343,0.00056684,120]
[322095632,1712760653245,-919.92,0.00056684,120]
[322095633,1712760653255,-362.0345,0.00056715,2]
[322095634,1712760653265,-150.0,0.00056771,120]
[322095635,1712760653276,-2856.50833,0.000569,2]
[322095636,1712760653286,-150.0,0.0005694,120]
[322095637,1712760653296,-150.0,0.00056968,120]
[322095638,1712760653306,-50265.39653802,0.0005699,45]
[322095639,1712760653316,-813.97681922,0.00056994,14]
[322095640,1712760653327,-482.90205505,0.00056996,14]
[322095641,1712760653338,-1006.2370324,0.00056999,15]
[322095642,1712760653350,-100000.0,0.00057,57]
[322095643,1712760653360,-150.0,0.00057,108]
[322095644,1712760653371,-5839.93465919,0.00057,120]
[322095645,1712760653381,-200.0,0.00057126,120]
[322095646,1712760653391,-150.0,0.00057141,120]
[322095647,1712760653401,-150.0,0.00057166,120]
[322095648,1712760653411,-200.0,0.00057171,120]
[322095649,1712760653422,-151.23,0.00057205,120]
[322095650,1712760653434,-151.78854707,0.00057248,72]
[322095651,1712760653444,-150.0,0.00057259,14]
[322095652,1712760653454,-150.0,0.00057305,14]
[322095653,1712760653464,-150.0,0.00057318,14]
[322095654,1712760653475,-150.0,0.00057327,14]
[322095655,1712760653486,-150.0,0.00057346,14]
[322095656,1712760653496,-150.0,0.00057359,14]
[322095657,1712760653506,-150.0,0.00057363,120]
[322095658,1712760653516,-150.0,0.00057375,14]
[322095659,1712760653527,-150.0,0.00057429,14]
[322095660,1712760653537,-150.0,0.00057446,14]
[322095661,1712760653547,-150.0,0.00057476,120]
[322095662,1712760653556,-150.0,0.0005749,14]
[322095663,1712760653566,-150.0,0.000575,109]
[322095664,1712760653575,-2500.0,0.000575,120]
[322095665,1712760653585,-150.0,0.00057503,14]
[322095666,1712760653594,-150.0,0.00057517,14]
[322095667,1712760653604,-179.03075194,0.0005753,120]
[322095668,1712760653613,-179.03075194,0.0005753,120]
[322095669,1712760653623,-179.03075194,0.0005753,120]
[322095670,1712760653634,-179.03075194,0.0005753,120]
[322095671,1712760653643,-179.03075194,0.0005753,120]
[322095672,1712760653652,-179.03075194,0.0005753,120]
[322095673,1712760653662,-179.03075194,0.0005753,120]
[322095674,1712760653671,-179.03075194,0.0005753,120]
[322095675,1712760653680,-179.03075194,0.0005753,120]
[322095676,1712760653689,-179.03075194,0.0005753,120]
[322095677,1712760653699,-179.03075194,0.0005753,120]
[322095678,1712760653708,-179.03075194,0.0005753,120]
[322095679,1712760653717,-179.03075194,0.0005753,120]
[322095680,1712760653726,-179.03075194,0.0005753,120]
[322095681,1712760653735,-179.03075194,0.0005753,120]
[322095682,1712760653744,-179.03075194,0.0005753,120]
[322095683,1712760653753,-179.03075194,0.0005753,120]
[322095684,1712760653763,-179.03075194,0.0005753,120]
[322095685,1712760653772,-179.03075194,0.0005753,120]
[322095686,1712760653781,-179.53,0.0005753,120]
[322095687,1712760653791,-716.19800776,0.0005753,120]
[322095688,1712760653800,-716.19800776,0.0005753,120]
[322095689,1712760653810,-870.25401265,0.0005753,120]
[322095690,1712760653821,-870.25401265,0.0005753,120]
[322095691,1712760653831,-870.25401265,0.0005753,120]
[322095692,1712760653841,-870.25401265,0.0005753,120]
[322095693,1712760653856,-870.25401265,0.0005753,120]
[322095694,1712760653865,-870.25401265,0.0005753,120]
[322095695,1712760653874,-870.25401265,0.0005753,120]
[322095696,1712760653883,-870.25401265,0.0005753,120]
[322095697,1712760653893,-870.25401265,0.0005753,120]
[322095698,1712760653902,-870.25401265,0.0005753,120]
[322095699,1712760653912,-870.25401265,0.0005753,120]
[322095700,1712760653922,-870.25401265,0.0005753,120]
[322095701,1712760653932,-870.25401265,0.0005753,120]
[322095702,1712760653942,-870.25401265,0.0005753,120]
[322095703,1712760653951,-870.25401265,0.0005753,120]
[322095704,1712760653960,-870.25401265,0.0005753,120]
[322095705,1712760653969,-870.25401265,0.0005753,120]
[322095706,1712760653978,-870.25401265,0.0005753,120]
[322095707,1712760653988,-870.25401265,0.0005753,120]
[322095708,1712760653997,-870.75,0.0005753,120]
[322095709,1712760654006,-3481.09105058,0.0005753,120]
[322095710,1712760654015,-3481.09105058,0.0005753,120]
[322095711,1712760654024,-2377.91227954,0.0005753,120]
[322095712,1712760654033,-2377.91227954,0.0005753,120]
[322095713,1712760654042,-2377.91227954,0.0005753,120]
[322095714,1712760654052,-2377.91227954,0.0005753,120]
[322095715,1712760654061,-2377.91227954,0.0005753,120]
[322095716,1712760654070,-2377.91227954,0.0005753,120]
[322095717,1712760654080,-2377.91227954,0.0005753,120]
[322095718,1712760654090,-2377.91227954,0.0005753,120]
[322095719,1712760654105,-2377.91227954,0.0005753,120]
[322095720,1712760654115,-2377.91227954,0.0005753,120]
[322095721,1712760654126,-2377.91227954,0.0005753,120]
[322095722,1712760654135,-2377.91227954,0.0005753,120]
[322095723,1712760654145,-2377.91227954,0.0005753,120]
[322095724,1712760654155,-2377.91227954,0.0005753,120]
[322095725,1712760654164,-2377.91227954,0.0005753,120]
[322095726,1712760654174,-2377.91227954,0.0005753,120]
[322095727,1712760654184,-2377.91227954,0.0005753,120]
[322095728,1712760654194,-2377.91227954,0.0005753,120]
[322095729,1712760654204,-2377.91227954,0.0005753,120]
[322095730,1712760654213,-2378.41,0.0005753,120]
[322095731,1712760654222,-9511.72411814,0.0005753,120]
[322095732,1712760654232,-9511.72411814,0.0005753,120]
[322095733,1712760654241,-878.19903158,0.0005753,120]
[322095734,1712760654251,-878.19903158,0.0005753,120]
[322095735,1712760654260,-878.19903158,0.0005753,120]
[322095736,1712760654269,-878.19903158,0.0005753,120]
[322095737,1712760654279,-878.19903158,0.0005753,120]
[322095738,1712760654288,-878.19903158,0.0005753,120]
[322095739,1712760654297,-878.19903158,0.0005753,120]
[322095740,1712760654306,-878.19903158,0.0005753,120]
[322095741,1712760654316,-878.19903158,0.0005753,120]
[322095742,1712760654326,-878.19903158,0.0005753,120]
[322095743,1712760654335,-878.19903158,0.0005753,120]
[322095744,1712760654344,-878.19903158,0.0005753,120]
[322095745,1712760654358,-878.19903158,0.0005753,120]
[322095746,1712760654367,-878.19903158,0.0005753,120]
[322095747,1712760654376,-878.19903158,0.0005753,120]
[322095748,1712760654385,-878.19903158,0.0005753,120]
[322095749,1712760654394,-878.19903158,0.0005753,120]
[322095750,1712760654403,-878.19903158,0.0005753,120]
[322095751,1712760654412,-878.19903158,0.0005753,120]
[322095752,1712760654422,-878.69,0.0005753,120]
[322095753,1712760654432,-3512.87112632,0.0005753,120]
[322095754,1712760654441,-3512.87112632,0.0005753,120]
[322095755,1712760654451,-150.0,0.00057531,14]
[322095756,1712760654460,-500.0,0.00057534,120]
[322095757,1712760654471,-500.0,0.00057534,120]
[322095758,1712760654481,-150.0,0.00057554,14]
[322095759,1712760654490,-150.0,0.00057561,120]
[322095760,1712760654499,-150.0,0.00057573,14]
[322095761,1712760654509,-150.0,0.00057574,14]
[322095762,1712760654518,-150.0,0.00057584,14]
[322095763,1712760654527,-150.0,0.00057585,14]
[322095764,1712760654537,-150.0,0.00057586,14]
[322095765,1712760654546,-167.0,0.000576,30]
[322095766,1712760654556,-150.0,0.00057605,14]
[322095767,1712760654566,-150.0,0.00057608,14]
[322095768,1712760654575,-150.0,0.0005761,120]
[322095769,1712760654584,-150.0,0.00057637,14]
[322095770,1712760654594,-150.0,0.00057655,14]
[322095771,1712760654606,-150.0,0.00057656,14]
[322095772,1712760654616,-150.0,0.00057665,14]
[322095773,1712760654625,-150.0,0.00057674,14]
[322095774,1712760654634,-150.0,0.00057676,14]
[322095775,1712760654643,-150.0,0.00057716,14]
[322095776,1712760654652,-150.0,0.0005772,14]
[322095777,1712760654662,-150.0,0.00057736,14]
[322095778,1712760654671,-150.0,0.0005774,14]
[322095779,1712760654680,-150.0,0.00057746,14]
[322095780,1712760654690,-150.0,0.00057753,14]
[322095781,1712760654699,-150.0,0.00057759,120]
[322095782,1712760654708,-150.0,0.00057761,14]
[322095783,1712760654718,-150.0,0.000578,14]
[322095784,1712760654728,-150.0,0.00057805,14]
[322095785,1712760654737,-150.0,0.00057832,14]
[322095786,1712760654746,-150.0,0.00057836,14]
[322095787,1712760654755,-150.0,0.00057844,14]
[322095788,1712760654765,-150.0,0.00057845,14]
[322095789,1712760654775,-150.0,0.00057846,14]
[322095790,1712760654785,-150.0,0.00057866,14]
[322095791,1712760654794,-150.0,0.00057869,14]
[322095792,1712760654803,-150.0,0.00057872,14]
[322095793,1712760654813,-150.0,0.00057884,14]
[322095794,1712760654823,-150.0,0.00057907,14]
[322095795,1712760654833,-150.0,0.00057928,14]
[322095796,1712760654849,-150.0,0.00057928,14]
[322095797,1712760654859,-160.8,0.00057929,2]
[322095798,1712760654869,-150.0,0.00057948,14]
[322095799,1712760654878,-150.0,0.00057956,120]
[322095800,1712760654888,-150.0,0.00057963,14]
[322095801,1712760654897,-150.0,0.00057982,14]
[322095802,1712760654907,-150.0,0.00057987,14]
[322095803,1712760654916,-150.0,0.00057991,14]
[322095804,1712760654926,-150.0,0.00057995,14]
[322095805,1712760654937,-6291.83960136,0.00057997,2]
[322095806,1712760654946,-100000.0,0.00058,58]
[322095807,1712760654956,-1434.17,0.00058,25]
[322095808,1712760654965,-150.0,0.00058,110]
[322095809,1712760654974,-250.0,0.00058,120]
[322095810,1712760654984,-150.0,0.00058001,14]
[322095811,1712760655024,-150.0,0.00058013,120]
[322095812,1712760655033,-150.0,0.00058021,14]
[322095813,1712760655042,-716.19800776,0.00058021,120]
[322095814,1712760655052,-3481.09105058,0.00058021,120]
[322095815,1712760655061,-9511.72411814,0.00058021,120]
[322095816,1712760655070,-3512.87112632,0.00058021,120]
[322095817,1712760655080,-150.0,0.0005804,14]
[322095818,1712760655089,-150.0,0.00058063,14]
[322095819,1712760655102,-150.0,0.00058073,14]
[322095820,1712760655111,-150.0,0.0005808,120]
[322095821,1712760655121,-1500.0,0.00058103,14]
[322095822,1712760655130,-116668.79,0.00058123,5]
[322095823,1712760655140,-150.0,0.00058126,14]
[322095824,1712760655149,-150.0,0.00058128,14]
[322095825,1712760655158,-150.0,0.00058154,120]
[322095826,1712760655167,-150.0,0.00058169,14]
[322095827,1712760655176,-150.0,0.00058188,14]
[322095828,1712760655186,-150.0,0.00058191,14]
[322095829,1712760655195,-150.0,0.00058208,14]
[322095830,1712760655205,-150.0,0.00058228,14]
[322095831,1712760655215,-200.0,0.00058242,120]
[322095832,1712760655224,-150.0,0.00058243,14]
[322095833,1712760655233,-150.0,0.00058247,14]
[322095834,1712760655243,-150.0,0.00058248,14]
[322095835,1712760655253,-150.0,0.00058248,14]
[322095836,1712760655262,-1539.5454,0.00058256,5]
[322095837,1712760655271,-150.0,0.00058257,14]
[322095838,1712760655280,-150.0,0.00058266,14]
[322095839,1712760655290,-150.0,0.00058291,14]
[322095840,1712760655300,-150.0,0.00058299,14]
[322095841,1712760655309,-150.0,0.00058316,14]
[322095842,1712760655318,-150.0,0.00058346,14]
[322095843,1712760655328,-150.0,0.0005835,14]
[322095844,1712760655337,-150.0,0.00058351,120]
[322095845,1712760655348,-150.0,0.00058353,14]
[322095846,1712760655357,-150.0,0.00058359,14]
[322095847,1712760655366,-150.0,0.0005837,14]
[322095848,1712760655375,-5944.3315375,0.000584,120]
[322095849,1712760655385,-150.0,0.00058404,14]
[322095850,1712760655394,-150.0,0.00058409,14]
[322095851,1712760655402,-300.0,0.00058414,14]
[322095852,1712760655412,-150.0,0.00058419,14]
[322095853,1712760655421,-150.0,0.00058424,14]
[322095854,1712760655431,-150.0,0.00058439,14]
[322095855,1712760655440,-150.0,0.00058439,14]
[322095856,1712760655450,-150.0,0.00058446,14]
[322095857,1712760655459,-150.0,0.00058455,14]
[322095858,1712760655468,-150.0,0.00058458,14]
[322095859,1712760655477,-150.0,0.00058473,14]
[322095860,1712760655487,-150.0,0.00058482,14]
[322095861,1712760655496,-150.0,0.00058485,14]
[322095862,1712760655505,-150.0,0.00058493,14]
[322095863,1712760655515,-150.0,0.00058496,14]
[322095864,1712760655524,-280.34212466,0.000585,111]
[322095865,1712760655534,-150.0,0.00058513,14]
[322095866,1712760655543,-150.0,0.00058514,14]
[322095867,1712760655552,-716.19800776,0.0005852,120]
[322095868,1712760655562,-3481.09105058,0.0005852,120]
[322095869,1712760655572,-9511.72411814,0.0005852,120]
[322095870,1712760655581,-3512.87112632,0.0005852,120]
[322095871,1712760655590,-150.0,0.00058523,14]
[322095872,1712760655600,-150.0,0.00058539,14]
[322095873,1712760655609,-150.0,0.00058542,14]
[322095874,1712760655618,-1000.0,0.00058542,120]
[322095875,1712760655627,-150.0,0.00058545,14]
[322095876,1712760655636,-240.77748702,0.00058549,120]
[322095877,1712760655646,-150.0,0.00058549,120]
[322095878,1712760655655,-287.5158936,0.00058549,120]
[322095879,1712760655665,-153.6094394,0.00058549,120]
[322095880,1712760655674,-10433.5054445,0.00058557,2]
[322095881,1712760655683,-3113.6661226,0.00058557,2]
[322095882,1712760655692,-39044.9206264,0.00058557,2]
[322095883,1712760655702,-2019.4188607,0.00058557,2]
[322095884,1712760655711,-250000.0,0.000586,70]
[322095885,1712760655720,-160000.00379652,0.0005867,120]
[322095886,1712760655729,-500.0,0.000588,120]
[322095887,1712760655739,-167.0,0.000588,30]
[322095888,1712760655749,-7437.263654,0.0005883,120]
[322095889,1712760655758,-264.71111111,0.00058849,120]
[322095890,1712760655767,-2790.6307571,0.0005886,2]
[322095891,1712760655776,-35636.1208019,0.0005886,2]
[322095892,1712760655786,-1900.0504508,0.0005886,2]
[322095893,1712760655795,-151000.0,0.0005887,120]
[322095894,1712760655804,-33000.0,0.0005887,120]
[322095895,1712760655815,-9351.0543686,0.0005888,2]
[322095896,1712760655825,-1006.0,0.000589,60]
[322095897,1712760655834,-250000.0,0.000589,70]
[322095898,1712760655844,-500.0,0.00058904,120]
[322095899,1712760655857,-1000.0,0.00058921,120]
[322095900,1712760655866,-13104.9042,0.0005897,21]
[322095901,1712760655876,-151.0,0.00058986,120]
[322095902,1712760655885,-200.0,0.00058987,2]
[322095903,1712760655895,-6291.83960136,0.00058997,2]
[322095904,1712760655904,-100000.0,0.00059,59]
[322095905,1712760655913,-23190.37214665,0.00059,120]
[322095906,1712760655924,-162.09770655,0.00059,120]
[322095907,1712760655933,-233.0,0.00059,120]
[322095908,1712760655943,-321.0,0.00059,120]
[322095909,1712760655952,-150.0,0.00059,120]
[322095910,1712760655962,-150.0,0.00059,120]
[322095911,1712760655971,-150.0,0.00059,120]
[322095912,1712760655980,-300.0,0.00059,120]
[322095913,1712760655989,-300.0,0.00059,120]
[322095914,1712760655999,-10000.0,0.00059,120]
[322095915,1712760656008,-7939.0,0.00059,120]
[322095916,1712760656018,-150.0,0.00059,120]
[322095917,1712760656027,-150.0,0.00059,120]
[322095918,1712760656037,-31973.79119163,0.00059,7]
[322095919,1712760656046,-3939.6926423,0.00059,120]
[322095920,1712760656055,-500.0,0.00059,120]
[322095921,1712760656065,-43001.28698863,0.0005901,120]
[322095922,1712760656074,-716.19800776,0.00059019,120]
[322095923,1712760656083,-3481.09105058,0.00059019,120]
[322095924,1712760656092,-9511.72411814,0.00059019,120]
[322095925,1712760656105,-3512.87112632,0.00059019,120]
[322095926,1712760656114,-568.20777816,0.0005909,2]
[322095927,1712760656124,-200.0,0.00059156,120]
[322095928,1712760656134,-5905.2,0.00059214,117]
[322095929,1712760656144,-264.71111111,0.00059452,120]
[322095930,1712760656154,-145586.09735579,0.000595,70]
[322095931,1712760656163,-151.0,0.000595,30]
[322095932,1712760656173,-151.0,0.000595,120]
[322095933,1712760656182,-151.0,0.000595,30]
[322095934,1712760656192,-151.0,0.000595,120]
[322095935,1712760656201,-280.254278,0.000595,120]
[322095936,1712760656211,-151.0,0.000595,120]
[322095937,1712760656221,-151.0,0.000595,120]
[322095938,1712760656230,-151.0,0.000595,120]
[322095939,1712760656239,-151.0,0.000595,120]
[322095940,1712760656248,-151.0,0.000595,120]
[322095941,1712760656258,-151.0,0.000595,2]
[322095942,1712760656268,-151.0,0.000595,120]
[322095943,1712760656277,-151.0,0.000595,120]
[322095944,1712760656286,-385.320217,0.000595,120]
[322095945,1712760656296,-385.320217,0.000595,120]
[322095946,1712760656305,-716.19800776,0.00059517,120]
[322095947,1712760656315,-3481.09105058,0.00059517,120]
[322095948,1712760656325,-9511.72411814,0.00059517,120]
[322095949,1712760656334,-3512.87112632,0.00059517,120]
[322095950,1712760656343,-151.0,0.00059518,120]
[322095951,1712760656356,-151.0,0.00059518,120]
[322095952,1712760656365,-151.0,0.00059518,14]
[322095953,1712760656375,-151.0,0.00059518,120]
[322095954,1712760656384,-350.0,0.000596,120]
[322095955,1712760656394,-20016.35,0.000598,120]
[322095956,1712760656403,-31978.0,0.000599,60]
[322095957,1712760656413,-151.23,0.00059945,120]
[322095958,1712760656422,-151.0,0.00059959,120]
[322095959,1712760656431,-151.0,0.00059959,120]
[322095960,1712760656441,-8268.6032927,0.00059959,2]
[322095961,1712760656450,-2467.5953917,0.00059959,2]
[322095962,1712760656459,-32227.3209773,0.00059959,2]
[322095963,1712760656469,-151.0,0.00059959,120]
[322095964,1712760656478,-151.0,0.00059959,120]
[322095965,1712760656487,-151.0,0.00059959,120]
[322095966,1712760656497,-461.847637,0.00059959,120]
[322095967,1712760656506,-461.847637,0.00059959,120]
[322095968,1712760656516,-151.0,0.00059959,120]
[322095969,1712760656525,-151.0,0.00059959,120]
[322095970,1712760656535,-1780.6820409,0.00059959,2]
[322095971,1712760656543,-405.0,0.00059986,120]
[322095972,1712760656553,-200.0,0.00059987,2]
[322095973,1712760656562,-200.0,0.00059987,3]
[322095974,1712760656571,-197.2495,0.00059987,120]
[322095975,1712760656581,-69878.95168696,0.00059988,120]
[322095976,1712760656589,-198.462087,0.00059988,120]
[322095977,1712760656599,-151.0,0.00059988,120]
[322095978,1712760656609,-151.0,0.00059988,120]
[322095979,1712760656619,-6291.83960136,0.00059997,2]
[322095980,1712760656628,-100000.0,0.0006,60]
[322095981,1712760656637,-518.06512933,0.0006,90]
[322095982,1712760656646,-1495.19701797,0.0006,7]
[322095983,1712760656655,-897.62544315,0.0006,120]
[322095984,1712760656664,-1102.0,0.0006,30]
[322095985,1712760656674,-1000.0,0.0006,60]
[322095986,1712760656684,-150.00000001,0.0006,120]
[322095987,1712760656694,-150.0,0.0006,120]
[322095988,1712760656703,-2000.0,0.0006,120]
[322095989,1712760656713,-155.5283904,0.0006,120]
[322095990,1712760656722,-352168.90405088,0.0006,120]
[322095991,1712760656731,-360.0,0.0006,30]
[322095992,1712760656741,-2008.0464496,0.0006,120]
[322095993,1712760656750,-1379.55340543,0.0006,120]
[322095994,1712760656759,-1244.45872698,0.0006,30]
[322095995,1712760656769,-150.0,0.0006,30]
[322095996,1712760656778,-769.14,0.0006,120]
[322095997,1712760656787,-167.0,0.0006,30]
[322095998,1712760656797,-300.0,0.0006,120]
[322095999,1712760656806,-10000.0,0.0006,4]
[322096000,1712760656815,-2001.6944536,0.0006,120]
[322096001,1712760656825,-127815.98264764,0.0006,2]
[322096002,1712760656835,-502.0,0.0006,120]
[322096003,1712760656852,-193.02527161,0.0006,15]
[322096004,1712760656861,-1000.0,0.0006,120]
[322096005,1712760656871,-191.8152136,0.0006,120]
[322096006,1712760656882,-150.0,0.0006,120]
[322096007,1712760656891,-6592.95792553,0.0006,120]
[322096008,1712760656900,-7000.0,0.0006,2]
[322096009,1712760656910,-1376.79457302,0.0006,120]
[322096010,1712760656920,-22651.12304172,0.0006,120]
[322096011,1712760656930,-197.193869,0.0006,120]
[322096012,1712760656939,-651.56,0.0006,30]
[322096013,1712760656948,-39098.64561389,0.0006,30]
[322096014,1712760657028,-808.04162661,0.00020558,2]
[322096015,1712760657040,-514.4256523,0.00020558,2]
[322096016,1712760657107,-1271.65570072,0.00020355,2]
[322096017,1712760657116,-830.62824921,0.00020558,2]
[322096018,1712760657128,-828.10263031,0.00020558,2]
[322096019,1712760657137,-747.72002574,0.00020672,2]
[322096020,1712760657149,-523.93567498,0.00020672,2]
[322096021,1712760657161,-2981.19815843,0.00021319,2]
[322096022,1712760657170,-1271.65570072,0.00021343,2]
[322096023,1712760657179,-500.0,0.00054794,120]
[322096024,1712760657189,-450.68550755,0.00055091,120]
[322096025,1712760657198,-450.68550755,0.00055097,120]
[322096026,1712760657207,-720.79065766,0.0006,30]
[322096027,1712760657221,-734.54205842,0.0006,30]
[322096028,1712760657233,-671.09289812,0.0006,30]
[322096029,1712760657246,-344.20808379,0.0006,30]
[322096030,1712760657266,-279.25808074,0.0001907,2]
[322096031,1712760657330,-293.82493448,0.0001907,2]
[322096032,1712760657343,-693.02298876,0.0001907,2]
[322096033,1712760657357,-8927.70909602,0.0001907,2]
[322096034,1712760657366,-8415.99917856,0.00020647,2]
[322096035,1712760657381,-3746.76742505,0.00020647,2]
[322096036,1712760657408,-259.76635627,0.00020647,2]
[322096037,1712760657453,-880.75622235,0.00020647,2]
[322096038,1712760657465,-65539.69201777,0.00020647,2]
[322096039,1712760657475,-335.13855223,0.000209,2]
[322096040,1712760657485,-308.68893934,0.000209,2]
[322096041,1712760657496,-2210.85563473,0.00021209,2]
[322096042,1712760657506,-1271.65570075,0.00021512,2]
[322096043,1712760657516,-2000.0,0.000548,120]
[322096044,1712760657525,-450.68550755,0.00055103,120]
[322096045,1712760657535,-450.68550755,0.00055108,120]
[322096046,1712760657545,-450.68550755,0.00055114,120]
[322096047,1712760657555,-901.371015,0.0005512,120]
[322096048,1712760657565,-2000.0,0.000589,120]
[322096049,1712760657575,-19075.69520849,0.0006,30]
[322096050,1712760657587,-7482.63985312,0.0006,30]
[322096051,1712760657603,-830.71139872,0.0006,30]
[322096052,1712760657615,-9164.65420624,0.0006,30]
[322096053,1712760726270,910.250584,0.00034115,30]
[322096055,1712761197629,150.0,0.0002,2]
[322096056,1712761519396,155.81,0.00018988,2]
[322096057,1712761651499,1033.52071841,0.00018988,2]
[322096058,1712761653685,255.57050584,0.00018988,2]
[322096059,1712761656244,344.71385659,0.00018988,2]
[322096149,1712761833388,-157.92490406,0.00019899,2]
[322096151,1712761833397,-405.12891114,0.00019997,2]
[322096152,1712761833406,-686.9461848,0.00019998,2]
[322096153,1712761833449,-757.05285384,0.00019998,2]
[322096154,1712761833460,-1350.0,0.0002,2]
[322096155,1712761833469,-1500.0,0.0002,2]
[322096156,1712761833478,-1500.0,0.0002,2]
[322096157,1712761833488,-927.72,0.0002,2]
[322096158,1712761833499,-260.52629873,0.0002,2]
[322096159,1712761833508,-3515.14,0.00020376,2]
[322096160,1712761833518,-1075.83,0.0002049,2]